Cogmind - Beta 16 @@@ ROGUE MODE // 2025.11.07 @ 22:42:52 Player: FR-13D Result: Self-destructed Performance ------------- Evolutions (4) 2000 Regions Visited (8) 1600 Robots Destroyed (55) 275 Value Destroyed (1222) 1222 Prototype IDs (33) 660 Alien Tech Used (0) 0 Bonus (874) 874 TOTAL SCORE: 6631 Bonus ------- Follower Combat Kills 574 Aligned with FarCom 300 Cogmind --------- Core Integrity 850/850 Matter 300/300 Energy 405/405 System Corruption 0% Temperature Cool (0) Movement Walking (112) Location -6/Factory Parts ------- > --- POWER (2) -------- Improved Ion Engine Nuclear Core > --- PROPULSION (4) --- Aluminum Leg Aluminum Leg Improved Aluminum Leg Carbon-fiber Leg > --- UTILITY (6) ------ Improved Heat Sink Medium Storage Unit Medium Armor Plating Reflective Plating System Guard Trap Reconfigurator > --- WEAPON (3) ------- Enhanced Autogun Enhanced Autogun Katana > --- INVENTORY (10) --- Aluminum Leg Melee Analysis Suite ECM Suite Medium Armor Plating Reflective Plating Hacking Suite System Shield Trap Extractor (2/4 EM Surge) Enhanced Autogun Blade Trap Peak State ------------ > --- POWER ------------ Improved Ion Engine Nuclear Core > --- PROPULSION ------- Aluminum Leg Aluminum Leg Improved Aluminum Leg Carbon-fiber Leg > --- UTILITY ---------- Improved Heat Sink Medium Storage Unit Medium Armor Plating Reflective Plating System Guard Trap Reconfigurator > --- WEAPON ----------- Enhanced Autogun Enhanced Autogun Katana > --- INVENTORY -------- Aluminum Leg Melee Analysis Suite ECM Suite Medium Armor Plating Reflective Plating Hacking Suite System Shield Trap Extractor Enhanced Autogun Blade Trap [Rating: 48] Favorites ----------- Power Improved Ion Engine Engine Improved Ion Engine Power Core Light Nuclear Core Propulsion Aluminum Leg Leg Aluminum Leg Utility Medium Storage Unit Device Seismic Detector Storage Medium Storage Unit Processor System Guard Protection Medium Armor Plating Weapon Enhanced Autogun Energy Gun Small Laser Energy Cannon Beam Cannon Ballistic Gun Enhanced Autogun Launcher Grenade Launcher Slashing Weapon Katana Build | -11 -10 -10 -10 -9 -8 -8 -8 -6 ------- Run | Yrd Mat Min Exi Min Mat Sto Rec Fac Slots Evolved 8 | . . . . . 4 . . 4 Power 1 | . . . . . . . . 1 Propulsion 2 | . . . . . 2 . . . Utility 4 | . . . . . 2 . . 2 Weapon 1 | . . . . . . . . 1 Parts Attached 45 | 7 11 4 1 . 16 . . 6 Power 6 | 1 2 1 . . 1 . . 1 Engine 4 | 1 1 1 . . 1 . . . Core 2 | . 1 . . . . . . 1 Reactor . | . . . . . . . . . Propulsion 13 | 2 5 2 . . 2 . . 2 Treads . | . . . . . . . . . Leg 13 | 2 5 2 . . 2 . . 2 Wheel . | . . . . . . . . . Hover . | . . . . . . . . . Flight . | . . . . . . . . . Utility 13 | 2 . . 1 . 8 . . 2 Device 7 | 1 . . . . 5 . . 1 Storage 2 | 1 . . 1 . . . . . Processor 1 | . . . . . . . . 1 Hackware . | . . . . . . . . . Protection 3 | . . . . . 3 . . . Artifact . | . . . . . . . . . Weapon 13 | 2 4 1 . . 5 . . 1 Energy Gun 3 | . 2 1 . . . . . . Energy Cannon 2 | . 1 . . . 1 . . . Ballistic Gun 5 | 2 . . . . 3 . . . Ballistic Cannon . | . . . . . . . . . Launcher 2 | . 1 . . . 1 . . . Special Weapon . | . . . . . . . . . Impact Weapon . | . . . . . . . . . Slashing Weapon 1 | . . . . . . . . 1 Piercing Weapon . | . . . . . . . . . Special Melee Weapon . | . . . . . . . . . Unidentified Prototypes 1 | . . . . . 1 . . . Parts Lost 4 | . 1 1 . . 2 . . . Power . | . . . . . . . . . Propulsion 1 | . . . . . 1 . . . Utility 1 | . . . . . 1 . . . Weapon 2 | . 1 1 . . . . . . Highest Loss Streak 1 | . 1 1 . . 1 . . . To Critical Strikes . | . . . . . . . . . Average Backups 8 | 1 6 8 8 8 9 10 10 8 Power 1 | . 1 2 2 2 1 1 1 . Propulsion 1 | . 2 3 2 2 . . . . Utility 4 | . 1 2 2 3 5 7 7 6 Weapon 1 | . . 1 1 1 3 2 2 1 Tool/Special . | . . . . . . . . . Unused Backups 14 | 1 . . . . 5 . 1 7 Power 2 | . . . . . 2 . . . Propulsion . | . . . . . . . . . Utility 7 | 1 . . . . . . . 6 Weapon 5 | . . . . . 3 . 1 1 Tool/Special . | . . . . . . . . . Average Slot Usage (%) 99 | . 99 98 100 100 99 99 100 97 Engine 8 | . 5 14 14 14 5 9 9 6 Core 2 | . 8 . . . 3 . . 6 Leg 31 | . 28 28 28 28 35 35 36 26 Device 13 | . 14 14 14 14 13 9 9 15 Storage 11 | . 14 14 14 14 9 9 9 6 Protection 7 | . . . . . 13 18 18 13 Energy Gun 5 | . 8 5 14 14 . . . . Energy Cannon 5 | . 3 14 14 14 2 . . . Ballistic Gun 10 | . 13 . . . 15 18 18 13 Peak Build Rating 48 | 7 11 10 11 11 33 28 28 48 Average Rating 19 | 5 9 8 10 11 26 27 28 42 On Entrance 14 | . 7 8 10 11 11 28 28 28 Avg Prop Armor Cover (%) . | . . . . . . . . . Naked Turns . | . . . . . . . . . Heaviest Build 47 | 12 17 17 20 20 39 35 35 47 Greatest Support 48 | 20 20 25 25 25 45 45 45 48 Greatest Overweight (x) 1 | 1 . . . . . 1 . 1 Average Overweight (x) . | . . . . . . . . . Largest Inventory Capacity 10 | 8 8 8 10 10 10 10 10 10 Average Capacity 9 | 7 8 8 9 10 10 10 10 10 Most Carried 10 | 3 8 8 8 10 10 10 10 10 Average Carried 8 | 1 6 8 7 8 9 10 10 9 Final Capacity 10 | 8 8 8 10 10 10 10 10 10 Final Carried 10 | 2 8 8 8 10 10 10 10 10 Class Distribution -------------------- 64% | Scavenger-Mutant 17% | Commander-Mutant 11% | Mutant 6% | Scavenger-Skirmisher Dominant Class ---------------- Scavenger-Mutant | -10/Materials Mutant | -10/Mines Scavenger-Mutant | -10/Exiles Scavenger-Mutant | -9/Mines Scavenger-Mutant | -8/Materials Commander-Mutant | -8/Storage Commander-Mutant | -8/Recycling Commander-Mutant | -6/Factory Resources | -11 -10 -10 -10 -9 -8 -8 -8 -6 ----------- Run | Yrd Mat Min Exi Min Mat Sto Rec Fac Matter Collected 1575 | 294 265 135 . 10 524 196 32 119 Remotely . | . . . . . . . . . Salvage Created 1814 | 104 561 106 . 56 704 104 72 107 Parts 92 | 11 25 7 . 6 30 6 3 4 Haulers Intercepted 8 | . 2 . . . 3 2 . 1 Recyclers Shooed 3 | 1 2 . . . . . . . Parts Field Recycled . | . . . . . . . . . Retrieved Matter . | . . . . . . . . . Parts Self-Destructed . | . . . . . . . . . Prevented . | . . . . . . . . . Parts Restored . | . . . . . . . . . Kills | -11 -10 -10 -10 -9 -8 -8 -8 -6 ------- Run | Yrd Mat Min Exi Min Mat Sto Rec Fac Combat Hostiles Destroyed 36 | . 13 4 . 3 14 . 2 . Guns 22 | . 10 . . 1 9 . 2 . Cannons 6 | . . 2 . 2 2 . . . AOE 8 | . 3 2 . . 3 . . . Classes Destroyed 11 | 2 4 1 . . 2 1 1 . Worker 1 | . . . . . . 1 . . Builder 1 | . 1 . . . . . . . Tunneler 2 | 2 . . . . . . . . Hauler 8 | . 2 . . . 3 2 . 1 Recycler 3 | 1 1 . . . 1 . . . Mechanic 1 | . . 1 . . . . . . Watcher 3 | . . . . . 3 . . . Swarmer 15 | . 6 . . 3 6 . . . Grunt 17 | . 7 4 . . 5 . 1 . Duelist 1 | . . . . . . . 1 . Sentry 3 | . . . . . 3 . . . Best Kill Streak 5 | 3 5 4 . 3 3 1 1 1 Combat Bots Only 4 | . 4 3 . 3 3 . 1 . Max Kills in Single Turn 4 | 1 3 4 . 1 2 1 1 1 Gunslinging . | . . . . . . . . . Exploded 2 | . 2 2 . . 2 . . . Melee . | . . . . . . . . . Uniques/NPCs Destroyed . | . . . . . . . . . Combat | -11 -10 -10 -10 -9 -8 -8 -8 -6 -------- Run | Yrd Mat Min Exi Min Mat Sto Rec Fac Hostile Shots Fired 166 | . 74 21 . 3 58 . 10 . Missed 39 | . 18 6 . . 14 . 1 . Hits 127 | . 56 15 . 3 44 . 9 . Projectile 127 | . 56 15 . 3 44 . 9 . AOE 2 | . . . . . . . 2 . Critical Strikes 5 | . 1 1 . . 3 . . . Damage Taken 1784 | . 653 208 . 27 628 . 156 112 Core 270 | . 141 79 . 20 30 . . . Absorbed by Shields . | . . . . . . . . . Ignored by Resistances 30 | . . . . . 12 . 15 3 Regen/Repaired (Parts) 162 | . 21 . . . 80 61 . . Core Remaining (%) 66 | 100 . . . 4 . . 94 . Volleys Fired 189 | 6 76 19 . 3 70 8 7 . Largest 2 | 2 2 2 . 2 2 2 2 . Hottest 105 | 40 105 90 . 100 93 50 50 . Shots Fired 328 | 12 138 23 . 6 119 16 14 . Gun 268 | 12 126 . . 3 97 16 14 . Cannon 43 | . 9 13 . 3 18 . . . Launcher 17 | . 3 10 . . 4 . . . Special . | . . . . . . . . . Kinetic 219 | 12 80 . . . 97 16 14 . Thermal 92 | . 55 13 . 6 18 . . . Explosive 17 | . 3 10 . . 4 . . . Electromagnetic . | . . . . . . . . . Robot Hit Streak 9 | 3 9 6 . 2 9 3 7 . Robot Miss Streak 4 | 2 4 3 . 1 4 2 3 . Penetration Max . | . . . . . . . . . Secondary Targets 2 | . 1 . . . . . 1 . Max Gunslinging Chain 1 | . 1 . . . . . 1 . Shots Hit Robots 197 | 6 87 9 . 3 73 9 9 1 Core Hits 99 | 6 31 11 . 3 36 5 6 1 Critical Kills 1 | . 1 . . . . . . . Critical Parts Destroyed . | . . . . . . . . . Critical Strikes 1 | . 1 . . . . . . . Destroy 1 | . 1 . . . . . . . Melee Attacks 2 | . . . . . . . . 2 Impact . | . . . . . . . . . Slashing 2 | . . . . . . . . 2 Piercing . | . . . . . . . . . Sneak Attacks 1 | . . . . . . . . 1 Combat Hostiles . | . . . . . . . . . Follow-up Attacks . | . . . . . . . . . Damage Inflicted 3927 | 62 1103 481 . 55 1754 240 173 59 Guns 2346 | 58 899 . . 13 1047 175 154 . Cannons 542 | . 70 126 . 36 310 . . . Explosions 836 | . 99 354 . . 383 . . . Melee 59 | . . . . . . . . 59 Ramming 144 | 4 35 1 . 6 14 65 19 . Kinetic 1966 | 58 532 . . . 1047 175 154 . Thermal 922 | . 437 126 . 49 310 . . . Explosive 793 | . 99 354 . . 340 . . . Electromagnetic 43 | . . . . . 43 . . . Impact . | . . . . . . . . . Slashing 59 | . . . . . . . . 59 Piercing . | . . . . . . . . . Highest Corruption 3 | . . . . . . . . 3 Average Corruption 3 | . . . . . . . . 3 Corruption Purged . | . . . . . . . . . Corruption Blocked . | . . . . . . . . . Overload Shots . | . . . . . . . . . Overflow Damage 27 | . 5 10 . . 12 . . . Projectiles 5 | . 5 . . . . . . . Explosions 22 | . . 10 . . 12 . . . Melee . | . . . . . . . . . Knockbacks . | . . . . . . . . . Impact . | . . . . . . . . . Kinetic . | . . . . . . . . . Secondary . | . . . . . . . . . Self-Inflicted Damage 27 | . . 27 . . . . . . Shots 1 | . . 1 . . . . . . Rammed . | . . . . . . . . . Targets Rammed 29 | 1 8 1 . 1 3 11 4 . Kicked 29 | 1 8 1 . 1 3 11 4 . Crushed . | . . . . . . . . . Highest Temperature 279 | . 153 279 . 81 20 . 1 . Average Temperature 50 | . 35 138 . 47 4 . 1 . Received Heat Transfer 723 | . 306 117 . . 225 . 75 . Siege Activations . | . . . . . . . . . Martial Activations . | . . . . . . . . . Shielding Activations . | . . . . . . . . . Robots Disrupted . | . . . . . . . . . Combat Hostiles . | . . . . . . . . . Robots Corrupted . | . . . . . . . . . Combat Hostiles . | . . . . . . . . . Parts Fried . | . . . . . . . . . Impact Corruptions . | . . . . . . . . . Robots Melted . | . . . . . . . . . Combat Hostiles . | . . . . . . . . . Parts Melted 2 | . . . . . 2 . . . Heat Transferred 1884 | . 971 259 . 99 555 . . . Parts Sabotaged . | . . . . . . . . . Parts Stolen . | . . . . . . . . . Parts Stripped . | . . . . . . . . . Power Chain Reactions . | . . . . . . . . . Alert | -11 -10 -10 -10 -9 -8 -8 -8 -6 ------- Run | Yrd Mat Min Exi Min Mat Sto Rec Fac Maximum Alert Level 1 | . . . . . . . 1 . Low Security (%) 96 | 100 100 100 . 100 100 100 49 100 Level 1 3 | . . . . . . . 50 . Level 2 . | . . . . . . . . . Level 3 . | . . . . . . . . . Level 4 . | . . . . . . . . . Level 5 . | . . . . . . . . . High Security . | . . . . . . . . . Max Security . | . . . . . . . . . Peak Influence 276 | 10 125 87 . 57 145 130 276 85 Initial 65 | . . 28 . . 9 59 40 65 Average 44 | 1 52 27 . 4 33 63 172 33 Influence Increases 1974 | 15 457 129 . 77 508 292 393 103 Destroy 0b10 Robot/C 1080 | . 260 80 . 60 280 140 220 40 Destroy 0b10 Robot/NC 115 | 15 20 5 . . 35 20 10 10 Destroy Leader 176 | . 54 10 . 10 72 26 . 4 Allied During Kill 284 | . . . . 7 . 97 142 38 Successful Hack 29 | . 15 . . . . 9 5 . Select Force Hacks 30 | . . . . . 30 . . . Disable Machine 60 | . 15 . . . 45 . . . Destroy Structure 95 | . 18 34 . . 16 . 16 11 Lose Combat Pursuer 105 | . 75 . . . 30 . . . Influence Decreases 1974 | 15 383 203 . 52 390 329 344 258 Entered New Map 302 | . . 46 . . 16 84 66 90 Time Decay 1500 | 15 383 147 . 32 364 205 206 148 Lost Part 20 | . . 10 . . 10 . . . Lost Ally 152 | . . . . 20 . 40 72 20 Squads Dispatched 6 | . 1 1 . . 3 1 . . Investigation 4 | . 1 . . . 2 1 . . Extermination . | . . . . . . . . . Reinforcement 1 | . . . . . 1 . . . Assault 1 | . . 1 . . . . . . Garrison . | . . . . . . . . . Intercept . | . . . . . . . . . Searches Triggered . | . . . . . . . . . Construction Impeded . | . . . . . . . . . Haulers Reinforced . | . . . . . . . . . Active Scanning Responses . | . . . . . . . . . Cargo Convoy Interrupts . | . . . . . . . . . Stealth | -11 -10 -10 -10 -9 -8 -8 -8 -6 --------- Run | Yrd Mat Min Exi Min Mat Sto Rec Fac Distress Signals 6 | . 2 . . . 2 1 . 1 Communications Jammed . | . . . . . . . . . Distress Signals . | . . . . . . . . . Times Spotted 80 | . 30 7 . 3 26 . 9 5 Peak Tracking Total 6 | . 6 4 . 3 3 . 4 3 Tactical Retreats 4 | . 3 . . . 1 . . . Traps | -11 -10 -10 -10 -9 -8 -8 -8 -6 ------- Run | Yrd Mat Min Exi Min Mat Sto Rec Fac Traps Triggered 3 | . 1 . . . 1 . . 1 Indirectly . | . . . . . . . . . Trap Hack Attempts . | . . . . . . . . . Triggered . | . . . . . . . . . Disarmed 1 | . 1 . . . . . . . Reprogrammed . | . . . . . . . . . Reused . | . . . . . . . . . Traps Reconfigurated 7 | . . . . . 1 . . 6 Traps Extracted 4 | . . . . . . . . 4 Installed . | . . . . . . . . . Triggered . | . . . . . . . . . Most Traps Carried 3 | . . . . . . . . 3 Machines | -11 -10 -10 -10 -9 -8 -8 -8 -6 ---------- Run | Yrd Mat Min Exi Min Mat Sto Rec Fac Machines Disabled 4 | . 1 . . . 3 . . . Max in Single Turn 2 | . 1 . . . 2 . . . Garrison Access 1 | . . . . . . 1 . . Machines Repaired . | . . . . . . . . . Machines Dismantled . | . . . . . . . . . Machines Sabotaged . | . . . . . . . . . Overloaded Fab Kills . | . . . . . . . . . Hacking | -11 -10 -10 -10 -9 -8 -8 -8 -6 --------- Run | Yrd Mat Min Exi Min Mat Sto Rec Fac Machines Accessed 26 | . 8 . 2 1 7 5 3 . Terminals 18 | . 7 . . 1 4 3 3 . Fabricators . | . . . . . . . . . Repair Stations 3 | . 1 . . . 1 1 . . Recycling Units 1 | . . . . . 1 . . . Scanalyzers 1 | . . . . . 1 . . . Garrison Access 1 | . . . . . . 1 . . Total Hacks 71 | . 26 . 5 1 16 11 12 . Successful 44 | . 15 . 5 . 9 8 7 . Failed 25 | . 10 . . 1 7 3 4 . Catastrophic 4 | . 2 . . . . 1 1 . Database Lockouts 2 | . 1 . . . . . 1 . Manual 35 | . 19 . 1 2 4 2 7 . Terminals 48 | . 23 . . 1 8 4 12 . Fabricators . | . . . . . . . . . Repair Stations 12 | . 3 . . . 4 5 . . Recycling Units 1 | . . . . . 1 . . . Scanalyzers 3 | . . . . . 3 . . . Garrison Access 2 | . . . . . . 2 . . Terminal Hacks 25 | . 9 . 5 . 2 2 7 . Record 8 | . . . 4 . . . 4 . Robot Analysis 2 | . 2 . . . . . . . Prototype ID Bank 7 | . 4 . . . 1 . 2 . Open Door 2 | . . . . . . 2 . . Branch Access Points 1 | . 1 . . . . . . . Emergency Access Points 2 | . 1 . . . 1 . . . Alert Level 1 | . . . . . . . 1 . Disarm Traps 1 | . 1 . . . . . . . Proto ID Catalog 1 | . . . 1 . . . . . Fabricator Hacks . | . . . . . . . . . Repair Station Hacks 10 | . 2 . . . 3 5 . . Scan Component 6 | . 1 . . . 2 3 . . Repair 4 | . 1 . . . 1 2 . . Recycling Unit Hacks . | . . . . . . . . . Scanalyzer 3 | . . . . . 3 . . . Insert Component 2 | . . . . . 2 . . . Retrieve Study 1 | . . . . . 1 . . . Garrison Access Hacks 1 | . . . . . . 1 . . Seal Access 1 | . . . . . . 1 . . Unauthorized Hacks 5 | . 4 . . . 1 . . . Terminals 4 | . 4 . . . . . . . Botnet 4 | . 4 . . . . . . . Fabricators . | . . . . . . . . . Repair Stations . | . . . . . . . . . Recycling Units 1 | . . . . . 1 . . . Tunnel 1 | . . . . . 1 . . . Scanalyzers . | . . . . . . . . . Garrison Access . | . . . . . . . . . Data Cores Recovered . | . . . . . . . . . Used . | . . . . . . . . . Hacking Detections 20 | . 8 . . 1 6 3 2 . Full Trace Events 3 | . . . . . 2 1 . . Feedback Events . | . . . . . . . . . Feedback Blocked . | . . . . . . . . . Robot Schematics Acquired . | . . . . . . . . . Robots Built . | . . . . . . . . . Authchips . | . . . . . . . . . Time . | . . . . . . . . . Total Robot Build Rating . | . . . . . . . . . Part Schematics Acquired . | . . . . . . . . . Parts Built . | . . . . . . . . . Authchips . | . . . . . . . . . Time . | . . . . . . . . . Total Part Build Rating . | . . . . . . . . . Part Studies Acquired 1 | . . . . . 1 . . . Parts Repaired 4 | . 1 . . . 1 2 . . Time 128 | . 38 . . . 26 64 . . Parts Recycled . | . . . . . . . . . Recycled Matter . | . . . . . . . . . Retrieved Matter . | . . . . . . . . . Retrieved Components . | . . . . . . . . . Parts Scanalyzed . | . . . . . . . . . Part Schematics Acquired . | . . . . . . . . . Parts Damaged . | . . . . . . . . . Bothacking | -11 -10 -10 -10 -9 -8 -8 -8 -6 ------------ Run | Yrd Mat Min Exi Min Mat Sto Rec Fac Used RIF Installer . | . . . . . . . . . Robots Hacked . | . . . . . . . . . Non-combat . | . . . . . . . . . Combat . | . . . . . . . . . Robot Hacks Applied . | . . . . . . . . . Relay Couplers Released . | . . . . . . . . . Fabnet Peak Effective % . | . . . . . . . . . Robots Rewired 11 | . . . . . . . 11 . Allies Hacked . | . . . . . . . . . Hacks Repelled . | . . . . . . . . . Allies | -11 -10 -10 -10 -9 -8 -8 -8 -6 -------- Run | Yrd Mat Min Exi Min Mat Sto Rec Fac Total Allies 24 | . . 1 . 2 . 10 11 . Largest Group 14 | . . 1 . 2 1 10 14 14 Highest-Rated Group 248 | . . 31 . 50 19 173 248 243 Highest-Rated Ally 34 | . . 31 . 31 19 29 34 34 Total Orders . | . . . . . . . . . Ally Attacks 96 | . . 5 . 7 . 52 26 6 Total Damage 1753 | . . 60 . 22 . 629 834 208 Kills 21 | . . . . . . 8 10 3 Allies Corrupted 2 | . . . . . . . . 2 Allies Melted . | . . . . . . . . . Intel | -11 -10 -10 -10 -9 -8 -8 -8 -6 ------- Run | Yrd Mat Min Exi Min Mat Sto Rec Fac Active Infowar (turns) 3770 | 35 1127 416 753 860 579 . . . Terrain 433 | . . . . . 433 . . . Seismic 3770 | 35 1127 416 753 860 579 . . . ECM 47 | . . . . . 47 . . . Robot Analysis Total 2 | . 2 . . . . . . . Derelict Logs Recovered . | . . . . . . . . . Drone Launches . | . . . . . . . . . Drone Recoveries . | . . . . . . . . . Exploration | -11 -10 -10 -10 -9 -8 -8 -8 -6 ------------- Run | Yrd Mat Min Exi Min Mat Sto Rec Fac Turns Passed 6973 | 113 1127 416 753 860 2311 544 430 419 Spaces Moved 3815 | 73 688 271 626 296 1009 272 255 325 Core 21 | 21 . . . . . . . . Treads . | . . . . . . . . . Legs 3794 | 52 688 271 626 296 1009 272 255 325 Wheels . | . . . . . . . . . Hover . | . . . . . . . . . Flight . | . . . . . . . . . Fastest Speed 50 | 50 120 120 120 120 108 108 108 108 Average Speed 115 | 111 120 120 120 120 112 108 108 112 Slowest Speed 178 | 120 120 120 120 120 120 175 108 178 Overloaded Moves . | . . . . . . . . . Propulsion Burnouts . | . . . . . . . . . Robots Hopped . | . . . . . . . . . Potential Cave-ins . | . . . . . . . . . Cave-ins Triggered . | . . . . . . . . . Exploration Rate (%) 54 | 5 93 60 90 57 57 41 73 10 Regions Visited 8 Branch Regions 5 Pre-discovered Areas 3 | . . 1 1 . 1 . . . Known Exits Taken 1 | . 1 . . . . . . . Unknown Exits Taken 7 | 1 . 1 1 1 1 1 1 . Scrap Searched 1 | . . . . 1 . . . . Spaces Dug 29 | . . 28 . . . . . 1 Terrain Destroyed 108 | . 14 74 . . 18 . 1 1 Melee 1 | . . . . . . . . 1 Projectile 1 | . . . . . . . 1 . AOE 106 | . 14 74 . . 18 . . . Terrain Rammed . | . . . . . . . . . Walls Destroyed . | . . . . . . . . . Machines Disabled . | . . . . . . . . . Actions | -11 -10 -10 -10 -9 -8 -8 -8 -6 --------- Run | Yrd Mat Min Exi Min Mat Sto Rec Fac Total 6091 | 90 859 340 629 794 2094 511 401 373 Wait 1886 | . 62 43 . 493 961 217 75 35 Move 3808 | 73 687 270 625 295 1008 271 254 325 Hop . | . . . . . . . . . Pick Up 29 | 3 5 . 1 2 15 1 1 1 Fast Attach 22 | 7 5 1 . . 6 2 . 1 Attach 8 | . . . . . 4 . . 4 Detach 3 | . 1 . . . 1 . . 1 Swap 26 | . 7 3 1 . 12 . . 3 Drop 31 | 1 8 3 2 . 14 1 1 1 Fire 189 | 6 76 19 . 3 70 8 7 . Melee 2 | . . . . . . . . 2 Ram . | . . . . . . . . . Kick 28 | . 8 1 . 1 3 11 4 . Crush . | . . . . . . . . . Escape Stasis . | . . . . . . . . . Rewire 59 | . . . . . . . 59 . Trap . | . . . . . . . . . Miscellaneous . | . . . . . . . . . Route ------- -11/Scrapyard -10/Materials (discovered 5 exits: [*Mat x2] / *Min x2 / [*Sub]) -10/Mines (discovered 3 exits: [*Mat x2] / *Exi) -10/Exiles -9/Mines -8/Materials -8/Storage -8/Recycling -6/Factory History --------- Turn | Location | Event 18 | -11/Scrapyard | Discovered new exit (range 16) 114 | -11/Scrapyard | Entered Materials 345 | -10/Materials | Identified exit to Mines 449 | -10/Materials | Central database locked down 558 | -10/Materials | Build established: Scavenger-Mutant 652 | -10/Materials | Discovered new exit (range 15) 708 | -10/Materials | Repaired Lgt. Nuclear Core 902 | -10/Materials | Discovered new exit (range 10) 1073 | -10/Materials | Core integrity fell below 50% 1103 | -10/Materials | Discovered new exit (range 15) 1241 | -10/Materials | Entered Mines 1242 | -10/Mines | Learned location of Storage (-8) 1242 | -10/Mines | Assembled infested the area 1252 | -10/Mines | Discovered new exit (range 6) 1266 | -10/Mines | Build established: Mutant 1381 | -10/Mines | Discovered new exit (range 13) 1398 | -10/Mines | Met a Derelict testing a Signal Generator 1443 | -10/Mines | Core integrity fell below 20% 1555 | -10/Mines | Found a damaged Exp. Sensor Array with a note attached 1652 | -10/Mines | Discovered new exit (range 5) 1657 | -10/Mines | Entered Exiles 1686 | -10/Exiles | Met 8R-AWN 1707 | -10/Exiles | Met EX-HEX 1740 | -10/Exiles | Met EX-BIN 1757 | -10/Exiles | Aligned with FarCom system 1758 | -10/Exiles | Given EX-Vault access code 1763 | -10/Exiles | Build established: Scavenger-Mutant 1787 | -10/Exiles | Opened EX-Vault 1797 | -10/Exiles | Found Trap Reconfigurator 1825 | -10/Exiles | Warned to stay clear of 0b10 Research branches 1864 | -10/Exiles | Met EX-DEC 1952 | -10/Exiles | Visited The Gauntlet 2360 | -10/Exiles | Learned location of Zion (-7) 2397 | -10/Exiles | Discovered new exit (range 14) 2410 | -10/Exiles | Left Exiles lab with Trap Reconfigurator 2410 | -10/Exiles | Entered Mines 3247 | -9/Mines | Discovered new exit (range 5) 3270 | -9/Mines | Entered Materials 3270 | -8/Materials | Accompanied by 1 ally 3270 | -8/Materials | Evolved 4 slots: Propulsion x2, Utility x2 3612 | -8/Materials | Build established: Scavenger-Skirmisher 4064 | -8/Materials | Build established: Scavenger-Mutant 5164 | -8/Materials | Repaired Aluminum Leg+ 5548 | -8/Materials | Discovered new exit (range 16) 5581 | -8/Materials | Entered Storage 5665 | -8/Storage | Repaired Carbon-fiber Leg 5691 | -8/Storage | Repaired Aluminum Leg+ 5715 | -8/Storage | Assisted by bots powering up and referring to "LRC-V3" 6016 | -8/Storage | Build established: Commander-Mutant 6113 | -8/Storage | Used back door to open Recycling access 6113 | -8/Storage | Discovered new exit (range 4) 6125 | -8/Storage | Entered Recycling 6125 | -8/Recycling | Accompanied by 7 allies 6458 | -8/Recycling | Discovered new exit (range 16) 6555 | -8/Recycling | Entered Factory 6555 | -6/Factory | Accompanied by 14 allies 6555 | -6/Factory | Evolved 4 slots: Power x1, Utility x2, Weapon x1 6974 | -6/Factory | Self-destructed Last Messages --------------- 06751_ U-05 Engineer lays Concrete. 06765_ Dropped Carbon-fiber Leg. 06767_ Acquired System Guard. 06777_ K-01 Serf collects debris. 06943_ Tesla Bomb Trap reprogrammed. 06972_ Trooper 3e triggered Tesla Bomb Trap. 06972_ A bubble of electromagnetic force engulfs the area. 06972_ Trooper 3e destroyed. 06972_ Tesla Bomb Trap short circuited. 06972_ Trooper 3a destroyed. 06972_ Tesla Bomb Trap short circuited. 06972_ Trooper 3b destroyed. 06972_ A bubble of electromagnetic force engulfs the area. 06972_ Chain reaction triggered in Corrupted Lgt. Nuclear Core. 06972_ Grenadier 3a destroyed. 06972_ Soldier 3a destroyed. 06972_ Trooper 3d destroyed. 06972_ Acquired 2 matter. 06973_ Trooper 3l system terminally corrupted. 06973_ Acquired 28 matter. Map ----- +----------------------------------------------------+ | ?????????????????????????????????????????????????? | | ?????????????????????????????????????????????????? | | ?????????????????????????????????????????????????? | | ?????????????????????????????????????????????????? | | ?????????????????????????????????????????????????? | | ?????????????????????????????????????????????????? | | ?????????????????????????????????????????????????? | | ?????????????????????????????????????????????????? | | ?????????????????????????????????????????????????? | | ?????????????????????????????????????????????????? | | ?????????????????????????????????????????????????? | | ?????????????????????????????????????????????????? | | ?????????????????????????????????????????????????? | | ???????????????????????????????##????????????????? | | ????????????#####????????????? #??????????????### | | ???????????? ???????????? #??????????????# ! | | ???????????w ??????????? ## ??????????# | | ???????????? ?????????? ## #####[ | | ????????????? ####?????? + +! | | ??????????????"" ?????? #?????##########! | | ????????????? "" ?????? #??????????????# | | ???????????""""" ######+################### | | ????????? ^ | | ????????? % g | | ????????????????### [ Y[=%%u############### | | ??????????????????# @ g% u#??????????# | | ??????????????????# = ! #??????????# " | | ??????????????????# =% #??????????# ### | | ??????????????????###############??????????#####?? | | ?????????????????????????????????????????????????? | | ?????????????????????????????????????????????????? | | ?????????????????????????????????????????????????? | | | | | | | | | | | | | | | | | | | | | | | | | | | | | | | | | | | | | +----------------------------------------------------+ Best States ------------- Heat Dissipation 51 Energy Generation 21 Energy Capacity 405 Matter Stores 300 Matter Capacity 300 Sight Range 16 Terrain Scan Range 16 Terrain Scan Density 10 ECM Strength 1 Corruption Containment 8 Armor Coverage 450 Resistance: TH 10 Evasion (%) 55 Trap Extractor Capacity 4 Item Schematics ----------------- None Robot Schematics ------------------ None Fabricated ------------ Nothing Repaired ---------- Lgt. Nuclear Core | 58% | -10/Materials Aluminum Leg | 11% | -8/Materials Aluminum Leg | 32% | -8/Storage Studied --------- Aluminum Leg | -8/Materials | Hacked Alien Tech Used ----------------- None Achievements -------------- Close Call Throw Away The Key Challenges ------------ None Game ------ Seed PitchforkDisposableSpecial Manual? 0 Play Time 00:49:44 Cumulative 67.6 hours Start 2025.11.07 @ 20:30:04 End 2025.11.07 @ 22:42:52 Sessions 5 Manual Loads 0 Difficulty Rogue Special Mode None Game No. 79 Rogue 79 Adventurer 0 Explorer 0 Win Type - Total 0 Types 0/0/0/0/0/0/0/0/0/0 Lore% 53 Gallery% 37 Achievement% 26 Wizard Run 0 Options --------- Layout 0 ASCII 0 Keyboard 1 Movement Vi Keybinds 0 Fullscreen 2 Font 18/SmallcapsGlow Map View 76x50 Zoom Use 0% Tactical HUD 1 Map Filters NONE Filters NONE Steam 1 RUN: 7ff65810-f1b8-448a-a312-ab588c46153e